[Event "Titled Tuesday Blitz August 1 Late 2023"]
[White "Volovich, Vasily"]
[Black "Nikologorsky, Matfei"]
[WhiteFideId "34169676"]
[BlackFideId "24102474"]
[WhiteElo "2747"]
[BlackElo "2382"]
[Result "1-0"]
[Round "6"]
[TimeControl "180+1"]
[Date "2023.08.01"]
[WhiteClock "0:00:05"]
[BlackClock "0:00:04"]
[Board "27"]

1. e4 {[%clk 0:03:00]}  c5 {[%clk 0:02:59]} 2. Nf3 {[%clk 0:03:00]}  e6 {[%clk 0:02:59]} 3. c3 {[%clk 0:03:01]}  d5 {[%clk 0:02:59]} 4. exd5 {[%clk 0:03:01]}  Qxd5 {[%clk 0:02:59]} 5. d4 {[%clk 0:03:02]}  Nf6 {[%clk 0:02:59]} 6. Na3 {[%clk 0:03:02]}  Nc6 {[%clk 0:02:59]} 7. Nb5 {[%clk 0:03:02]}  Qd8 {[%clk 0:02:59]} 8. dxc5 {[%clk 0:03:03]}  Bxc5 {[%clk 0:02:58]} 9. Qxd8+ {[%clk 0:03:02]}  Kxd8 {[%clk 0:02:59]} 10. Bf4 {[%clk 0:03:03]}  Ne4 {[%clk 0:02:58]} 11. Rd1+ {[%clk 0:03:01]}  Bd7 {[%clk 0:02:26]} 12. Bg3 {[%clk 0:02:58]}  Nxg3 {[%clk 0:02:17]} 13. hxg3 {[%clk 0:02:58]}  Ke7 {[%clk 0:02:18]} 14. Nbd4 {[%clk 0:02:56]}  Rac8 {[%clk 0:02:05]} 15. Bb5 {[%clk 0:02:27]}  Nxd4 {[%clk 0:01:41]} 16. Nxd4 {[%clk 0:02:27]}  Bxb5 {[%clk 0:01:41]} 17. Nxb5 {[%clk 0:02:26]}  h6 {[%clk 0:01:33]} 18. Ke2 {[%clk 0:02:26]}  a6 {[%clk 0:01:29]} 19. Nd4 {[%clk 0:02:26]}  Rhd8 {[%clk 0:01:28]} 20. Nb3 {[%clk 0:02:18]}  Bb6 {[%clk 0:01:23]} 21. f3 {[%clk 0:02:17]}  e5 {[%clk 0:01:06]} 22. g4 {[%clk 0:02:12]}  Ke6 {[%clk 0:01:04]} 23. Nd2 {[%clk 0:02:08]}  Rd5 {[%clk 0:00:49]} 24. Ne4 {[%clk 0:02:05]}  Rcd8 {[%clk 0:00:49]} 25. Rxd5 {[%clk 0:02:03]}  Rxd5 {[%clk 0:00:50]} 26. Ng3 {[%clk 0:02:04]}  Rb5 {[%clk 0:00:44]} 27. b3 {[%clk 0:01:51]}  Rc5 {[%clk 0:00:35]} 28. c4 {[%clk 0:01:50]}  Rc8 {[%clk 0:00:33]} 29. Nf5 {[%clk 0:01:49]}  Kf6 {[%clk 0:00:32]} 30. Nd6 {[%clk 0:01:37]}  Rb8 {[%clk 0:00:28]} 31. Rd1 {[%clk 0:01:33]}  Bc7 {[%clk 0:00:17]} 32. c5 {[%clk 0:01:21]}  Ke6 {[%clk 0:00:16]} 33. Nf5 {[%clk 0:01:20]}  g6 {[%clk 0:00:16]} 34. Ne3 {[%clk 0:01:13]}  h5 {[%clk 0:00:15]} 35. gxh5 {[%clk 0:01:09]}  gxh5 {[%clk 0:00:16]} 36. Nd5 {[%clk 0:01:06]}  Ba5 {[%clk 0:00:15]} 37. b4 {[%clk 0:01:06]}  Bd8 {[%clk 0:00:15]} 38. Nc3 {[%clk 0:00:49]}  Be7 {[%clk 0:00:15]} 39. Na4 {[%clk 0:00:45]}  Rg8 {[%clk 0:00:13]} 40. Kf1 {[%clk 0:00:43]}  Rc8 {[%clk 0:00:12]} 41. Nb6 {[%clk 0:00:41]}  Rc6 {[%clk 0:00:12]} 42. Nd5 {[%clk 0:00:37]}  a5 {[%clk 0:00:11]} 43. a3 {[%clk 0:00:35]}  axb4 {[%clk 0:00:11]} 44. axb4 {[%clk 0:00:36]}  Rc8 {[%clk 0:00:10]} 45. Kf2 {[%clk 0:00:32]}  f5 {[%clk 0:00:10]} 46. Ne3 {[%clk 0:00:25]}  b6 {[%clk 0:00:08]} 47. cxb6 {[%clk 0:00:23]}  Bxb4 {[%clk 0:00:09]} 48. Rb1 {[%clk 0:00:22]}  Bc5 {[%clk 0:00:09]} 49. b7 {[%clk 0:00:22]}  Rb8 {[%clk 0:00:09]} 50. Ke2 {[%clk 0:00:21]}  Bxe3 {[%clk 0:00:10]} 51. Kxe3 {[%clk 0:00:21]}  Kd6 {[%clk 0:00:11]} 52. Rb5 {[%clk 0:00:12]}  Kc6 {[%clk 0:00:08]} 53. Rxe5 {[%clk 0:00:12]}  Rxb7 {[%clk 0:00:08]} 54. Rxf5 {[%clk 0:00:12]}  Rg7 {[%clk 0:00:08]} 55. Kf2 {[%clk 0:00:09]}  Rh7 {[%clk 0:00:07]} 56. Kg3 {[%clk 0:00:07]}  Kd6 {[%clk 0:00:08]} 57. Kh4 {[%clk 0:00:08]}  Ke6 {[%clk 0:00:08]} 58. Rxh5 {[%clk 0:00:08]}  Rg7 {[%clk 0:00:08]} 59. g3 {[%clk 0:00:08]}  Kf6 {[%clk 0:00:08]} 60. f4 {[%clk 0:00:08]}  Rc7 {[%clk 0:00:08]} 61. Ra5 {[%clk 0:00:08]}  Rc3 {[%clk 0:00:07]} 62. Kg4 {[%clk 0:00:08]}  Rc6 {[%clk 0:00:05]} 63. Rh5 {[%clk 0:00:08]}  Kg6 {[%clk 0:00:06]} 64. f5+ {[%clk 0:00:09]}  Kg7 {[%clk 0:00:06]} 65. Kg5 {[%clk 0:00:09]}  Rb6 {[%clk 0:00:04]} 66. g4 {[%clk 0:00:09]}  Ra6 {[%clk 0:00:04]} 67. f6+ {[%clk 0:00:08]}  Rxf6 {[%clk 0:00:03]} 68. Rh7+ {[%clk 0:00:08]}  Kxh7 {[%clk 0:00:04]} 69. Kxf6 {[%clk 0:00:09]}  Kh8 {[%clk 0:00:04]} 70. g5 {[%clk 0:00:05]}  Kg8 {[%clk 0:00:04]} 71. Kg6 {[%clk 0:00:03]}  Kh8 {[%clk 0:00:04]} 72. Kh6 {[%clk 0:00:04]}  Kg8 {[%clk 0:00:04]} 73. Kg6 {[%clk 0:00:02]}  Kh8 {[%clk 0:00:04]} 74. Kf7 {[%clk 0:00:02]}  Kh7 {[%clk 0:00:05]} 75. g6+ {[%clk 0:00:03]}  Kh6 {[%clk 0:00:05]} 76. g7 {[%clk 0:00:04]}  Kg5 {[%clk 0:00:04]} 77. g8=Q+ {[%clk 0:00:05]} 1-0


[Site "https://www.chess.com"]

[Event "Titled Tuesday Blitz August 1 Late 2023"]
[White "Makarian, Rudik"]
[Black "Golubka, Petro"]
[WhiteFideId "44105681"]
[BlackFideId "14114224"]
[WhiteElo "3000"]
[BlackElo "2727"]
[Result "0-1"]
[Round "6"]
[TimeControl "180+1"]
[Date "2023.08.01"]
[WhiteClock "0:00:00"]
[BlackClock "0:00:03"]
[Board "28"]

1. d4 {[%clk 0:03:00]}  d5 {[%clk 0:02:55]} 2. c4 {[%clk 0:02:58]}  dxc4 {[%clk 0:02:55]} 3. Nf3 {[%clk 0:02:59]}  Nf6 {[%clk 0:02:55]} 4. e3 {[%clk 0:02:59]}  e6 {[%clk 0:02:56]} 5. Bxc4 {[%clk 0:03:00]}  c5 {[%clk 0:02:57]} 6. O-O {[%clk 0:03:00]}  a6 {[%clk 0:02:55]} 7. Be2 {[%clk 0:02:59]}  Nc6 {[%clk 0:02:52]} 8. dxc5 {[%clk 0:02:55]}  Qxd1 {[%clk 0:02:51]} 9. Rxd1 {[%clk 0:02:56]}  Bxc5 {[%clk 0:02:51]} 10. Nbd2 {[%clk 0:02:55]}  Bd7 {[%clk 0:02:48]} 11. a3 {[%clk 0:02:54]}  O-O {[%clk 0:02:38]} 12. b4 {[%clk 0:02:54]}  Be7 {[%clk 0:02:38]} 13. Bb2 {[%clk 0:02:54]}  b5 {[%clk 0:02:28]} 14. Nb3 {[%clk 0:02:51]}  Rfd8 {[%clk 0:02:27]} 15. Rac1 {[%clk 0:02:50]}  Be8 {[%clk 0:02:26]} 16. Rxd8 {[%clk 0:02:49]}  Rxd8 {[%clk 0:02:27]} 17. Nfd4 {[%clk 0:02:49]}  Nxd4 {[%clk 0:02:17]} 18. Bxd4 {[%clk 0:02:50]}  Nd5 {[%clk 0:02:13]} 19. Bf3 {[%clk 0:02:50]}  f6 {[%clk 0:02:03]} 20. g4 {[%clk 0:02:43]}  Bd7 {[%clk 0:01:45]} 21. Bc5 {[%clk 0:02:31]}  Kf7 {[%clk 0:01:39]} 22. Bxd5 {[%clk 0:02:25]}  exd5 {[%clk 0:01:39]} 23. Bxe7 {[%clk 0:02:22]}  Kxe7 {[%clk 0:01:40]} 24. h3 {[%clk 0:02:22]}  Kd6 {[%clk 0:01:30]} 25. Kg2 {[%clk 0:02:21]}  h5 {[%clk 0:01:25]} 26. Kg3 {[%clk 0:02:18]}  Rh8 {[%clk 0:01:24]} 27. Nd4 {[%clk 0:02:14]}  g6 {[%clk 0:01:19]} 28. f3 {[%clk 0:02:08]}  Rh7 {[%clk 0:01:16]} 29. Ne2 {[%clk 0:02:04]}  Re7 {[%clk 0:01:02]} 30. Rc3 {[%clk 0:02:00]}  hxg4 {[%clk 0:01:00]} 31. hxg4 {[%clk 0:02:00]}  g5 {[%clk 0:00:59]} 32. Nd4 {[%clk 0:01:54]}  Rh7 {[%clk 0:00:58]} 33. Rc1 {[%clk 0:01:54]}  Rh8 {[%clk 0:00:56]} 34. Nb3 {[%clk 0:01:47]}  Rc8 {[%clk 0:00:50]} 35. Rxc8 {[%clk 0:01:41]}  Bxc8 {[%clk 0:00:51]} 36. f4 {[%clk 0:01:38]}  Bd7 {[%clk 0:00:48]} 37. Nd4 {[%clk 0:01:37]}  Bc8 {[%clk 0:00:47]} 38. fxg5 {[%clk 0:01:30]}  fxg5 {[%clk 0:00:47]} 39. Nf3 {[%clk 0:01:30]}  d4 {[%clk 0:00:46]} 40. Nxd4 {[%clk 0:01:09]}  Kd5 {[%clk 0:00:45]} 41. Nf5 {[%clk 0:01:01]}  Bd7 {[%clk 0:00:38]} 42. Kf3 {[%clk 0:00:59]}  Kc4 {[%clk 0:00:33]} 43. Nd4 {[%clk 0:00:46]}  Kd3 {[%clk 0:00:33]} 44. Nb3 {[%clk 0:00:38]}  Bc6+ {[%clk 0:00:33]} 45. Kf2 {[%clk 0:00:38]}  Kc3 {[%clk 0:00:08]} 46. Nc5 {[%clk 0:00:33]}  Kb2 {[%clk 0:00:09]} 47. Nxa6 {[%clk 0:00:24]}  Kxa3 {[%clk 0:00:09]} 48. Ke2 {[%clk 0:00:24]}  Bb7 {[%clk 0:00:08]} 49. Nc5 {[%clk 0:00:23]}  Bc8 {[%clk 0:00:08]} 50. Nd3 {[%clk 0:00:21]}  Bxg4+ {[%clk 0:00:07]} 51. Kd2 {[%clk 0:00:13]}  Bf5 {[%clk 0:00:08]} 52. Nf2 {[%clk 0:00:11]}  Kxb4 {[%clk 0:00:08]} 53. e4 {[%clk 0:00:12]}  Be6 {[%clk 0:00:08]} 54. Kd3 {[%clk 0:00:10]}  Kc5 {[%clk 0:00:07]} 55. Ke3 {[%clk 0:00:09]}  b4 {[%clk 0:00:07]} 56. e5 {[%clk 0:00:09]}  b3 {[%clk 0:00:06]} 57. Ne4+ {[%clk 0:00:08]}  Kc4 {[%clk 0:00:06]} 58. Nxg5 {[%clk 0:00:07]}  Kc3 {[%clk 0:00:05]} 59. Ne4+ {[%clk 0:00:07]}  Kc2 {[%clk 0:00:05]} 60. Nd2 {[%clk 0:00:06]}  b2 {[%clk 0:00:06]} 61. Ke2 {[%clk 0:00:07]}  Bh3 {[%clk 0:00:05]} 62. Ke3 {[%clk 0:00:05]}  Be6 {[%clk 0:00:04]} 63. Ke2 {[%clk 0:00:05]}  Kc1 {[%clk 0:00:04]} 64. Ke3 {[%clk 0:00:05]}  Bd5 {[%clk 0:00:04]} 65. Kd3 {[%clk 0:00:05]}  Be6 {[%clk 0:00:04]} 66. Kc3 {[%clk 0:00:05]}  Bd5 {[%clk 0:00:01]} 67. Kd3 {[%clk 0:00:04]}  Be6 {[%clk 0:00:01]} 68. Kc3 {[%clk 0:00:03]}  Bc4 {[%clk 0:00:01]} 69. Nxc4 {[%clk 0:00:02]}  b1=Q {[%clk 0:00:02]} 70. Kd4 {[%clk 0:00:03]}  Qb4 {[%clk 0:00:01]} 71. Kd5 {[%clk 0:00:03]}  Qb5+ {[%clk 0:00:01]} 72. Kd4 {[%clk 0:00:02]}  Qc6 {[%clk 0:00:02]} 73. Ne3 {[%clk 0:00:02]}  Kd2 {[%clk 0:00:02]} 74. Nd5 {[%clk 0:00:02]}  Kd1 {[%clk 0:00:02]} 75. Nf4 {[%clk 0:00:02]}  Qa4+ {[%clk 0:00:02]} 76. Ke3 {[%clk 0:00:03]}  Qa3+ {[%clk 0:00:02]} 77. Ke4 {[%clk 0:00:03]}  Qb4+ {[%clk 0:00:03]} 78. Kf5 {[%clk 0:00:04]}  Qb1+ {[%clk 0:00:03]} 79. Kf6 {[%clk 0:00:04]}  Qc1 {[%clk 0:00:03]} 80. Ng6 {[%clk 0:00:03]}  Qc3 {[%clk 0:00:03]} 81. Kf5 {[%clk 0:00:03]}  Ke2 {[%clk 0:00:03]} 82. e6 {[%clk 0:00:03]}  Qg7 {[%clk 0:00:04]} 83. Ne5 {[%clk 0:00:02]}  Ke3 {[%clk 0:00:03]} 84. Nf7 {[%clk 0:00:00]}  Kd4 {[%clk 0:00:03]} 0-1


[Site "https://www.chess.com"]

[Event "Titled Tuesday Blitz August 1 Late 2023"]
[White "Kamsky, Gata"]
[Black "Korchmar, Vasiliy"]
[WhiteFideId "2000024"]
[BlackFideId "24131750"]
[WhiteElo "2991"]
[BlackElo "2677"]
[Result "1/2-1/2"]
[Round "6"]
[TimeControl "180+1"]
[Date "2023.08.01"]
[WhiteClock "0:00:19"]
[BlackClock "0:00:08"]
[Board "29"]

1. e4 {[%clk 0:03:00]}  c5 {[%clk 0:03:00]} 2. Nf3 {[%clk 0:02:45]}  d6 {[%clk 0:02:59]} 3. d4 {[%clk 0:02:43]}  cxd4 {[%clk 0:03:00]} 4. Nxd4 {[%clk 0:02:43]}  Nf6 {[%clk 0:03:01]} 5. Nc3 {[%clk 0:02:44]}  Nc6 {[%clk 0:03:01]} 6. Bg5 {[%clk 0:02:41]}  Bd7 {[%clk 0:03:01]} 7. Qd2 {[%clk 0:02:39]}  a6 {[%clk 0:03:01]} 8. f3 {[%clk 0:02:35]}  e6 {[%clk 0:03:00]} 9. h4 {[%clk 0:02:34]}  Be7 {[%clk 0:02:58]} 10. O-O-O {[%clk 0:02:29]}  b5 {[%clk 0:02:55]} 11. Nxc6 {[%clk 0:02:20]}  Bxc6 {[%clk 0:02:55]} 12. Ne2 {[%clk 0:02:20]}  Qc7 {[%clk 0:02:44]} 13. Kb1 {[%clk 0:02:13]}  Bb7 {[%clk 0:02:32]} 14. Nd4 {[%clk 0:02:11]}  Rc8 {[%clk 0:02:31]} 15. g4 {[%clk 0:02:07]}  h6 {[%clk 0:02:20]} 16. Be3 {[%clk 0:02:05]}  d5 {[%clk 0:02:05]} 17. e5 {[%clk 0:02:03]}  Nd7 {[%clk 0:02:00]} 18. f4 {[%clk 0:02:03]}  Nc5 {[%clk 0:01:57]} 19. Bd3 {[%clk 0:02:02]}  Ne4 {[%clk 0:01:56]} 20. Qh2 {[%clk 0:01:30]}  Bc5 {[%clk 0:01:44]} 21. f5 {[%clk 0:01:25]}  Qb6 {[%clk 0:01:43]} 22. Bxe4 {[%clk 0:01:23]}  dxe4 {[%clk 0:01:44]} 23. Rhf1 {[%clk 0:01:16]}  Bd5 {[%clk 0:01:18]} 24. Qf2 {[%clk 0:01:13]}  Qc7 {[%clk 0:00:56]} 25. fxe6 {[%clk 0:00:51]}  fxe6 {[%clk 0:00:57]} 26. Nxb5 {[%clk 0:00:43]}  axb5 {[%clk 0:00:49]} 27. Bxc5 {[%clk 0:00:43]}  Qxc5 {[%clk 0:00:41]} 28. Qf7+ {[%clk 0:00:41]}  Kd8 {[%clk 0:00:41]} 29. c3 {[%clk 0:00:33]}  Qc4 {[%clk 0:00:32]} 30. Qxe6 {[%clk 0:00:24]}  Qxa2+ {[%clk 0:00:30]} 31. Kc2 {[%clk 0:00:22]}  Qb3+ {[%clk 0:00:13]} 32. Kb1 {[%clk 0:00:21]}  Qa2+ {[%clk 0:00:10]} 33. Kc1 {[%clk 0:00:21]}  Qa1+ {[%clk 0:00:08]} 34. Kc2 {[%clk 0:00:20]}  Qa4+ {[%clk 0:00:08]} 35. Kb1 {[%clk 0:00:19]}  Qa2+ {[%clk 0:00:08]} 1/2-1/2


[Site "https://www.chess.com"]

[Event "Titled Tuesday Blitz August 1 Late 2023"]
[White "Bauman_Guy"]
[Black "Tologon tegin, Semetei"]
[BlackFideId "13800574"]
[WhiteElo "2805"]
[BlackElo "2606"]
[Result "1-0"]
[Round "6"]
[TimeControl "180+1"]
[Date "2023.08.01"]
[WhiteClock "0:00:04"]
[BlackClock "0:00:00"]
[Board "32"]

1. e4 {[%clk 0:03:00]}  c5 {[%clk 0:02:48]} 2. Nf3 {[%clk 0:03:00]}  Nc6 {[%clk 0:02:47]} 3. d4 {[%clk 0:03:01]}  cxd4 {[%clk 0:02:47]} 4. Nxd4 {[%clk 0:03:01]}  Qb6 {[%clk 0:02:48]} 5. Nb3 {[%clk 0:03:01]}  e6 {[%clk 0:02:48]} 6. Nc3 {[%clk 0:03:01]}  Nf6 {[%clk 0:02:47]} 7. Qe2 {[%clk 0:03:01]}  Bb4 {[%clk 0:02:46]} 8. Bd2 {[%clk 0:03:01]}  O-O {[%clk 0:02:46]} 9. a3 {[%clk 0:03:01]}  Bxc3 {[%clk 0:02:43]} 10. Bxc3 {[%clk 0:03:01]}  e5 {[%clk 0:02:43]} 11. O-O-O {[%clk 0:03:01]}  Rd8 {[%clk 0:02:40]} 12. Rd6 {[%clk 0:03:01]}  Ne8 {[%clk 0:02:36]} 13. Rd2 {[%clk 0:02:59]}  a5 {[%clk 0:02:34]} 14. Qb5 {[%clk 0:02:54]}  Qc7 {[%clk 0:02:33]} 15. Rd1 {[%clk 0:02:18]}  d6 {[%clk 0:02:30]} 16. Nd2 {[%clk 0:02:17]}  Be6 {[%clk 0:02:25]} 17. Nc4 {[%clk 0:02:16]}  Ra6 {[%clk 0:02:18]} 18. Ne3 {[%clk 0:02:08]}  Na7 {[%clk 0:02:00]} 19. Qa4 {[%clk 0:01:47]}  Bd7 {[%clk 0:01:41]} 20. Qb3 {[%clk 0:01:35]}  b5 {[%clk 0:01:38]} 21. Nd5 {[%clk 0:01:33]}  Qb8 {[%clk 0:01:36]} 22. a4 {[%clk 0:01:25]}  Kf8 {[%clk 0:00:56]} 23. h4 {[%clk 0:01:20]}  Rc8 {[%clk 0:00:53]} 24. h5 {[%clk 0:01:16]}  h6 {[%clk 0:00:53]} 25. Be2 {[%clk 0:01:06]}  Nc7 {[%clk 0:00:47]} 26. f4 {[%clk 0:00:57]}  Nxd5 {[%clk 0:00:46]} 27. Rxd5 {[%clk 0:00:45]}  Be6 {[%clk 0:00:36]} 28. axb5 {[%clk 0:00:44]}  Bxd5 {[%clk 0:00:36]} 29. Qxd5 {[%clk 0:00:40]}  Rc5 {[%clk 0:00:35]} 30. bxa6 {[%clk 0:00:38]}  Rxd5 {[%clk 0:00:34]} 31. exd5 {[%clk 0:00:38]}  Qb6 {[%clk 0:00:30]} 32. fxe5 {[%clk 0:00:35]}  dxe5 {[%clk 0:00:31]} 33. Kb1 {[%clk 0:00:33]}  Nb5 {[%clk 0:00:25]} 34. Bxe5 {[%clk 0:00:18]}  Qxa6 {[%clk 0:00:24]} 35. Rd1 {[%clk 0:00:18]}  Nc3+ {[%clk 0:00:22]} 36. Bxc3 {[%clk 0:00:17]}  Qxe2 {[%clk 0:00:23]} 37. Rd2 {[%clk 0:00:17]}  Qf1+ {[%clk 0:00:22]} 38. Ka2 {[%clk 0:00:17]}  Qc4+ {[%clk 0:00:23]} 39. Ka3 {[%clk 0:00:17]}  Ke7 {[%clk 0:00:18]} 40. Bxa5 {[%clk 0:00:14]}  Kd7 {[%clk 0:00:16]} 41. Bc3 {[%clk 0:00:14]}  Qg4 {[%clk 0:00:13]} 42. b3 {[%clk 0:00:13]}  Qxh5 {[%clk 0:00:13]} 43. Bxg7 {[%clk 0:00:13]}  Qg5 {[%clk 0:00:12]} 44. Bc3 {[%clk 0:00:13]}  Qe3 {[%clk 0:00:11]} 45. Kb2 {[%clk 0:00:13]}  h5 {[%clk 0:00:10]} 46. Rd3 {[%clk 0:00:13]}  Qg5 {[%clk 0:00:09]} 47. g3 {[%clk 0:00:13]}  h4 {[%clk 0:00:08]} 48. gxh4 {[%clk 0:00:13]}  Qxh4 {[%clk 0:00:09]} 49. Bd2 {[%clk 0:00:13]}  Qf6+ {[%clk 0:00:08]} 50. c3 {[%clk 0:00:13]}  Qf2 {[%clk 0:00:07]} 51. b4 {[%clk 0:00:12]}  f5 {[%clk 0:00:08]} 52. Rd4 {[%clk 0:00:13]}  Qe2 {[%clk 0:00:06]} 53. Kc2 {[%clk 0:00:12]}  Qa6 {[%clk 0:00:05]} 54. Kb3 {[%clk 0:00:12]}  Qf1 {[%clk 0:00:04]} 55. Kc2 {[%clk 0:00:08]}  Qa6 {[%clk 0:00:04]} 56. c4 {[%clk 0:00:05]}  Qa2+ {[%clk 0:00:04]} 57. Kd1 {[%clk 0:00:06]}  Qb1+ {[%clk 0:00:03]} 58. Ke2 {[%clk 0:00:06]}  Qb2 {[%clk 0:00:04]} 59. Rf4 {[%clk 0:00:06]}  Qc2 {[%clk 0:00:04]} 60. b5 {[%clk 0:00:07]}  Qb1 {[%clk 0:00:03]} 61. Rd4 {[%clk 0:00:05]}  Kd6 {[%clk 0:00:03]} 62. Bf4+ {[%clk 0:00:05]}  Kc5 {[%clk 0:00:03]} 63. Be3 {[%clk 0:00:05]}  Kd6 {[%clk 0:00:04]} 64. c5+ {[%clk 0:00:04]}  Ke5 {[%clk 0:00:03]} 65. c6 {[%clk 0:00:04]}  Qxb5+ {[%clk 0:00:02]} 66. Kf2 {[%clk 0:00:04]}  Qb2+ {[%clk 0:00:02]} 67. Rd2 {[%clk 0:00:05]}  Qb3 {[%clk 0:00:02]} 68. d6 {[%clk 0:00:05]}  Ke4 {[%clk 0:00:02]} 69. Re2 {[%clk 0:00:04]}  f4 {[%clk 0:00:01]} 70. Bc1+ {[%clk 0:00:04]}  Kf5 {[%clk 0:00:01]} 71. d7 {[%clk 0:00:04]}  Qg3+ {[%clk 0:00:02]} 72. Kf1 {[%clk 0:00:05]}  f3 {[%clk 0:00:02]} 73. d8=Q {[%clk 0:00:03]}  Qh3+ {[%clk 0:00:03]} 74. Ke1 {[%clk 0:00:03]}  Qh1+ {[%clk 0:00:02]} 75. Kd2 {[%clk 0:00:04]}  fxe2 {[%clk 0:00:03]} 76. Qf8+ {[%clk 0:00:04]}  Ke6 {[%clk 0:00:03]} 77. Qe8+ {[%clk 0:00:04]}  Kd6 {[%clk 0:00:04]} 78. Qd7+ {[%clk 0:00:05]}  Kc5 {[%clk 0:00:04]} 79. Kxe2 {[%clk 0:00:02]}  Qxc1 {[%clk 0:00:03]} 80. c7 {[%clk 0:00:02]}  Qc2+ {[%clk 0:00:04]} 81. Ke3 {[%clk 0:00:03]}  Qc3+ {[%clk 0:00:04]} 82. Ke4 {[%clk 0:00:03]}  Qe1+ {[%clk 0:00:04]} 83. Kf5 {[%clk 0:00:03]}  Qf1+ {[%clk 0:00:04]} 84. Ke6 {[%clk 0:00:03]}  Qh3+ {[%clk 0:00:05]} 85. Kf7 {[%clk 0:00:04]}  Qf3+ {[%clk 0:00:04]} 86. Ke7 {[%clk 0:00:04]}  Qe4+ {[%clk 0:00:04]} 87. Kd8 {[%clk 0:00:04]}  Qh4+ {[%clk 0:00:00]} 88. Qe7+ {[%clk 0:00:04]} 1-0


[Site "https://www.chess.com"]

[Event "Titled Tuesday Blitz August 1 Late 2023"]
[White "Bochnicka, Vladimir"]
[Black "Mekhitarian, Krikor Sevag"]
[WhiteFideId "14943450"]
[BlackFideId "2107660"]
[WhiteElo "2515"]
[BlackElo "2762"]
[Result "1-0"]
[Round "6"]
[TimeControl "180+1"]
[Date "2023.08.01"]
[WhiteClock "0:00:16"]
[BlackClock "0:00:24"]
[Board "34"]

1. e4 {[%clk 0:03:00]}  e6 {[%clk 0:02:59]} 2. d4 {[%clk 0:02:57]}  d5 {[%clk 0:02:59]} 3. e5 {[%clk 0:02:57]}  c5 {[%clk 0:02:59]} 4. c3 {[%clk 0:02:56]}  Nc6 {[%clk 0:03:00]} 5. Nf3 {[%clk 0:02:55]}  Bd7 {[%clk 0:03:00]} 6. Bd3 {[%clk 0:02:55]}  cxd4 {[%clk 0:03:00]} 7. O-O {[%clk 0:02:53]}  dxc3 {[%clk 0:02:59]} 8. Nxc3 {[%clk 0:02:53]}  a6 {[%clk 0:02:56]} 9. Re1 {[%clk 0:02:41]}  Nge7 {[%clk 0:02:56]} 10. h4 {[%clk 0:02:40]}  Nc8 {[%clk 0:02:45]} 11. h5 {[%clk 0:02:28]}  h6 {[%clk 0:02:45]} 12. a3 {[%clk 0:02:21]}  Nb6 {[%clk 0:02:44]} 13. b4 {[%clk 0:02:19]}  Rc8 {[%clk 0:02:41]} 14. Bf4 {[%clk 0:02:15]}  Be7 {[%clk 0:02:40]} 15. Rc1 {[%clk 0:02:14]}  Na7 {[%clk 0:02:38]} 16. Qe2 {[%clk 0:02:07]}  Nc4 {[%clk 0:02:27]} 17. Nd4 {[%clk 0:01:58]}  Nb6 {[%clk 0:01:37]} 18. Qg4 {[%clk 0:01:55]}  Kf8 {[%clk 0:01:36]} 19. Re3 {[%clk 0:01:17]}  Bg5 {[%clk 0:01:36]} 20. Rg3 {[%clk 0:01:14]}  Na4 {[%clk 0:01:34]} 21. Nxa4 {[%clk 0:01:11]}  Bxa4 {[%clk 0:01:28]} 22. Rxc8 {[%clk 0:01:09]}  Nxc8 {[%clk 0:01:27]} 23. Bxg5 {[%clk 0:01:03]}  Qxg5 {[%clk 0:01:26]} 24. Nxe6+ {[%clk 0:01:03]}  fxe6 {[%clk 0:01:23]} 25. Qf3+ {[%clk 0:01:04]}  Ke7 {[%clk 0:01:18]} 26. Rxg5 {[%clk 0:01:00]}  hxg5 {[%clk 0:01:19]} 27. Bg6 {[%clk 0:00:56]}  Be8 {[%clk 0:01:13]} 28. Qe3 {[%clk 0:00:53]}  Bxg6 {[%clk 0:01:10]} 29. Qxg5+ {[%clk 0:00:53]}  Kd7 {[%clk 0:01:11]} 30. Qxg6 {[%clk 0:00:54]}  Ne7 {[%clk 0:01:12]} 31. Qxg7 {[%clk 0:00:54]}  Rxh5 {[%clk 0:01:12]} 32. g4 {[%clk 0:00:49]}  Rh3 {[%clk 0:01:12]} 33. f4 {[%clk 0:00:37]}  Rf3 {[%clk 0:00:56]} 34. Qf7 {[%clk 0:00:28]}  d4 {[%clk 0:00:51]} 35. Kg2 {[%clk 0:00:28]}  Re3 {[%clk 0:00:50]} 36. f5 {[%clk 0:00:26]}  exf5 {[%clk 0:00:48]} 37. gxf5 {[%clk 0:00:26]}  Rxe5 {[%clk 0:00:46]} 38. f6 {[%clk 0:00:26]}  Kd6 {[%clk 0:00:32]} 39. fxe7 {[%clk 0:00:20]}  Rxe7 {[%clk 0:00:33]} 40. Qf6+ {[%clk 0:00:20]}  Re6 {[%clk 0:00:31]} 41. Qxd4+ {[%clk 0:00:21]}  Kc7 {[%clk 0:00:32]} 42. Qc4+ {[%clk 0:00:19]}  Kd7 {[%clk 0:00:32]} 43. Qd5+ {[%clk 0:00:18]}  Ke7 {[%clk 0:00:25]} 44. Qxb7+ {[%clk 0:00:18]}  Kd8 {[%clk 0:00:26]} 45. Qb8+ {[%clk 0:00:17]}  Kd7 {[%clk 0:00:24]} 46. a4 {[%clk 0:00:16]} 1-0


[Site "https://www.chess.com"]